fUSD/lending_fUSD_20250109
["ID","MTS","AMOUNT","RATE_DAILY","PERIOD"]
[348230914,1736405462724,-150.0,0.00012237,2]
[348230915,1736405462734,-150.0,0.00012237,2]
[348230916,1736405462743,-150.0,0.00012239,2]
[348230917,1736405462752,-150.0,0.00012244,2]
[348230918,1736405462761,-178.330156,0.00012246,2]
[348230919,1736405462770,-178.330156,0.00012246,2]
[348230920,1736405462784,-150.0,0.0001225,2]
[348230921,1736405462793,-150.0,0.0001225,2]
[348230922,1736405462802,-150.0,0.0001225,2]
[348230923,1736405462812,-150.0,0.0001226,2]
[348230924,1736405462822,-4479.59195187,0.00012279,2]
[348230925,1736405462831,-24419.558123,0.0001228,2]
[348230926,1736405462840,-24419.558123,0.0001228,2]
[348230927,1736405462849,-24419.558123,0.0001228,2]
[348230928,1736405462859,-24419.558123,0.0001228,2]
[348230929,1736405462868,-24419.558123,0.0001228,2]
[348230930,1736405462877,-22554.27115156,0.0001228,2]
[348230931,1736405463107,-436.03787415,0.0001228,2]
[348230932,1736405463128,-500.0,0.00010815,2]
[348230933,1736405463138,-352.99136144,0.0001228,2]
[348230934,1736405463275,-500.0,9.993e-05,2]
[348230935,1736405463286,-500.0,9.993e-05,2]
[348230936,1736405463296,-293.08547858,0.0001105,2]
[348230937,1736405463307,-343.88842845,0.0001105,2]
[348230938,1736405463319,-443.76091222,0.0001105,2]
[348230939,1736405463328,-207.23908778,0.00011089,2]
[348230940,1736405463529,-351.00222468,0.00011089,2]
[348230941,1736405463543,-301.51764332,0.0001228,2]
[348230942,1736405463556,-774.74009253,0.0001228,2]
[348230943,1736405463566,-15821.29901901,0.0001228,2]
[348230944,1736405463589,-8598.25910399,0.0001228,2]
[348230945,1736405463599,-4524.24064023,0.0001228,2]
[348230946,1736405463612,-3044.49108923,0.0001228,2]
[348230947,1736405463842,326.1,0.0002001,120]
[348230948,1736405463996,-500.0,9.993e-05,2]
[348230949,1736405464006,-1080.73481925,0.000122,2]
[348230950,1736405464016,-421.41575243,0.0001228,2]
[348230951,1736405464042,-384.89768341,0.0001228,2]
[348230952,1736405464054,-7512.70143247,0.0001228,2]
[348230953,1736405464066,-986.30146054,0.0001228,2]
[348230954,1736405464077,-5771.60791159,0.0001228,2]
[348230955,1736405465237,163.05,8.501e-05,2]
[348230956,1736405470235,163.04,0.0002001,120]
[348230960,1736405659087,1587.0,8.5e-05,2]
[348230962,1736405985632,988.39,8.219e-05,2]
[348230964,1736406092656,100000.0,0.0002001,120]
[348230974,1736406199233,587543.64780974,8.501e-05,2]
[348230990,1736406475391,184.95,0.0002001,120]
[348231003,1736406632111,-250.0,9.534e-05,2]
[348231004,1736406632125,-414.3,9.663e-05,2]
[348231005,1736406632135,-268.9,9.706e-05,2]
[348231072,1736406637771,-4718.5,9.706e-05,2]
[348231084,1736406639656,-970.68645107,9.706e-05,2]
[348231085,1736406639684,-13610.43354893,9.706e-05,2]
[348231086,1736406639693,-1000.0,9.979e-05,2]
[348231087,1736406639704,-150.0,9.991e-05,2]
[348231088,1736406639713,-663.328444,9.992e-05,2]
[348231089,1736406639722,-170.991427,9.992e-05,2]
[348231090,1736406639732,-500.0,9.992e-05,2]
[348231091,1736406639741,-500.0,9.992e-05,2]
[348231092,1736406639750,-500.0,9.992e-05,2]
[348231093,1736406639760,-503.18211822,9.992e-05,2]
[348231094,1736406639769,-500.0,9.992e-05,2]
[348231095,1736406639779,-500.0,9.992e-05,2]
[348231096,1736406639788,-500.0,9.992e-05,2]
[348231097,1736406639798,-500.0,9.992e-05,2]
[348231098,1736406639808,-500.0,9.992e-05,2]
[348231099,1736406639817,-500.0,9.992e-05,2]
[348231100,1736406639826,-501.90840369,9.992e-05,2]
[348231101,1736406639836,-500.0,9.992e-05,2]
[348231102,1736406639845,-500.0,9.992e-05,2]
[348231103,1736406639855,-500.0,9.992e-05,2]
[348231104,1736406639864,-500.0,9.992e-05,2]
[348231105,1736406639873,-503.53542871,9.992e-05,2]
[348231106,1736406639882,-500.0,9.992e-05,2]
[348231107,1736406639891,-500.0,9.992e-05,2]
[348231108,1736406639900,-500.43117394,9.992e-05,2]
[348231109,1736406639909,-500.0,9.992e-05,2]
[348231110,1736406639918,-500.0,9.992e-05,2]
[348231111,1736406639927,-502.83098358,9.992e-05,2]
[348231112,1736406639936,-500.0,9.992e-05,2]
[348231113,1736406639945,-500.0,9.992e-05,2]
[348231114,1736406639955,-500.0,9.992e-05,2]
[348231115,1736406639964,-500.0,9.992e-05,2]
[348231116,1736406639973,-500.0,9.992e-05,2]
[348231117,1736406639983,-500.0,9.992e-05,2]
[348231118,1736406639991,-500.0,9.992e-05,2]
[348231119,1736406640000,-500.0,9.992e-05,2]
[348231120,1736406640009,-500.0,9.992e-05,2]
[348231121,1736406640018,-501.16080485,9.992e-05,2]
[348231122,1736406640028,-500.0,9.992e-05,2]
[348231123,1736406640037,-500.0,9.992e-05,2]
[348231124,1736406640045,-445.80520274,9.992e-05,2]
[348231125,1736406640261,-170.833381,9.992e-05,2]
[348231126,1736406640270,-501.59439518,9.992e-05,2]
[348231127,1736406640280,-500.0,9.992e-05,2]
[348231128,1736406640289,-500.0,9.992e-05,2]
[348231129,1736406640298,-500.0,9.992e-05,2]
[348231130,1736406640307,-500.0,9.992e-05,2]
[348231131,1736406640316,-500.0,9.992e-05,2]
[348231132,1736406640325,-500.0,9.992e-05,2]
[348231133,1736406640336,-500.0,9.992e-05,2]
[348231134,1736406640345,-500.0,9.992e-05,2]
[348231135,1736406640354,-500.0,9.992e-05,2]
[348231136,1736406640364,-500.0,9.992e-05,2]
[348231137,1736406640373,-500.0,9.992e-05,2]
[348231138,1736406640382,-500.0,9.992e-05,2]
[348231139,1736406640392,-500.0,9.992e-05,2]
[348231140,1736406640401,-500.0,9.992e-05,2]
[348231141,1736406640411,-500.0,9.992e-05,2]
[348231142,1736406640420,-500.0,9.992e-05,2]
[348231143,1736406640429,-500.0,9.992e-05,2]
[348231144,1736406640439,-500.63045244,9.992e-05,2]
[348231145,1736406640448,-500.0,9.992e-05,2]
[348231146,1736406640457,-500.85268257,9.992e-05,2]
[348231147,1736406640467,-500.0,9.992e-05,2]
[348231148,1736406640476,-500.0,9.992e-05,2]
[348231149,1736406640485,-500.0,9.992e-05,2]
[348231150,1736406640495,-500.0,9.992e-05,2]
[348231151,1736406640504,-500.0,9.992e-05,2]
[348231152,1736406640513,-500.0,9.992e-05,2]
[348231153,1736406640523,-500.0,9.992e-05,2]
[348231154,1736406640532,-500.0,9.992e-05,2]
[348231155,1736406640541,-500.0,9.992e-05,2]
[348231156,1736406640551,-500.0,9.992e-05,2]
[348231157,1736406640560,-500.0,9.992e-05,2]
[348231158,1736406640569,-500.0,9.992e-05,2]
[348231159,1736406640578,-500.0,9.992e-05,2]
[348231160,1736406640587,-501.45842499,9.992e-05,2]
[348231161,1736406640596,-500.0,9.992e-05,2]
[348231162,1736406640605,-500.0,9.992e-05,2]
[348231163,1736406640614,-500.0,9.992e-05,2]
[348231164,1736406640623,-500.0,9.992e-05,2]
[348231165,1736406640633,-500.0,9.992e-05,2]
[348231166,1736406640643,-500.0,9.992e-05,2]
[348231167,1736406640652,-500.0,9.992e-05,2]
[348231168,1736406640661,-500.0,9.992e-05,2]
[348231169,1736406640670,-500.0,9.992e-05,2]
[348231170,1736406640679,-500.0,9.992e-05,2]
[348231171,1736406640689,-500.0,9.992e-05,2]
[348231172,1736406640698,-500.0,9.992e-05,2]
[348231173,1736406640707,-500.0,9.992e-05,2]
[348231174,1736406640715,-237.86976817,9.992e-05,2]
[348231175,1736406640725,-500.0,9.992e-05,2]
[348231176,1736406640734,-500.0,9.992e-05,2]
[348231177,1736406640743,-500.0,9.992e-05,2]
[348231178,1736406640752,-500.0,9.992e-05,2]
[348231179,1736406640761,-500.0,9.992e-05,2]
[348231180,1736406640770,-500.0,9.992e-05,2]
[348231181,1736406640780,-500.40978857,9.992e-05,2]
[348231182,1736406640790,-500.0,9.992e-05,2]
[348231183,1736406640799,-500.0,9.992e-05,2]
[348231184,1736406640808,-500.0,9.992e-05,2]
[348231185,1736406640818,-500.0,9.992e-05,2]
[348231186,1736406640828,-518.85,9.992e-05,2]
[348231187,1736406640838,-500.0,9.992e-05,2]
[348231188,1736406640849,-500.0,9.992e-05,2]
[348231189,1736406640858,-500.0,9.992e-05,2]
[348231190,1736406640867,-500.0,9.992e-05,2]
[348231191,1736406640876,-500.0,9.992e-05,2]
[348231192,1736406640886,-500.0,9.992e-05,2]
[348231193,1736406640896,-500.0,9.992e-05,2]
[348231194,1736406640905,-503.20846297,9.992e-05,2]
[348231195,1736406640915,-503.25182189,9.992e-05,2]
[348231196,1736406640925,-500.0,9.992e-05,2]
[348231197,1736406640934,-500.0,9.992e-05,2]
[348231198,1736406640943,-500.20863755,9.992e-05,2]
[348231199,1736406640953,-500.0,9.992e-05,2]
[348231200,1736406640962,-500.0,9.992e-05,2]
[348231201,1736406640972,-500.0,9.992e-05,2]
[348231202,1736406640982,-500.0,9.992e-05,2]
[348231203,1736406640992,-500.0,9.992e-05,2]
[348231204,1736406641001,-500.0,9.992e-05,2]
[348231205,1736406641011,-500.0,9.992e-05,2]
[348231206,1736406641020,-505.14286578,9.992e-05,2]
[348231207,1736406641029,-500.0,9.992e-05,2]
[348231208,1736406641039,-500.0,9.992e-05,2]
[348231209,1736406641049,-500.0,9.992e-05,2]
[348231210,1736406641058,-500.0,9.992e-05,2]
[348231211,1736406641067,-500.43737558,9.992e-05,2]
[348231212,1736406641076,-500.0,9.992e-05,2]
[348231213,1736406641088,-500.0,9.992e-05,2]
[348231214,1736406641099,-500.0,9.992e-05,2]
[348231215,1736406641108,-500.0,9.992e-05,2]
[348231216,1736406641118,-500.4337222,9.992e-05,2]
[348231217,1736406641132,-500.0,9.992e-05,2]
[348231218,1736406641142,-500.0,9.992e-05,2]
[348231219,1736406641152,-500.0,9.992e-05,2]
[348231220,1736406641163,-500.0,9.992e-05,2]
[348231221,1736406641173,-500.0,9.992e-05,2]
[348231222,1736406641183,-500.0,9.992e-05,2]
[348231223,1736406641192,-500.0,9.992e-05,2]
[348231224,1736406641205,-500.0,9.992e-05,2]
[348231225,1736406641215,-500.0,9.992e-05,2]
[348231226,1736406641225,-500.0,9.992e-05,2]
[348231227,1736406641235,-500.0,9.992e-05,2]
[348231228,1736406641245,-500.0,9.992e-05,2]
[348231229,1736406641255,-500.0,9.992e-05,2]
[348231230,1736406641265,-500.0,9.992e-05,2]
[348231231,1736406641275,-500.0,9.992e-05,2]
[348231232,1736406641285,-500.0,9.992e-05,2]
[348231233,1736406641295,-500.0,9.992e-05,2]
[348231234,1736406641304,-500.0,9.992e-05,2]
[348231235,1736406641314,-500.0,9.992e-05,2]
[348231236,1736406641324,-500.0,9.992e-05,2]
[348231237,1736406641336,-500.0,9.992e-05,2]
[348231238,1736406641346,-500.55411641,9.992e-05,2]
[348231239,1736406641356,-551.1140989,9.992e-05,2]
[348231240,1736406641365,-500.0,9.992e-05,2]
[348231241,1736406641375,-500.79998703,9.992e-05,2]
[348231242,1736406641384,-500.0,9.992e-05,2]
[348231243,1736406641394,-500.0,9.992e-05,2]
[348231244,1736406641405,-500.0,9.992e-05,2]
[348231245,1736406641415,-501.76245435,9.992e-05,2]
[348231246,1736406641425,-500.0,9.992e-05,2]
[348231247,1736406641435,-500.87946102,9.992e-05,2]
[348231248,1736406641444,-500.0,9.992e-05,2]
[348231249,1736406641454,-500.0,9.992e-05,2]
[348231250,1736406641464,-502.4,9.992e-05,2]
[348231251,1736406641474,-500.0,9.992e-05,2]
[348231252,1736406641483,-500.0,9.992e-05,2]
[348231253,1736406641493,-500.0,9.992e-05,2]
[348231254,1736406641503,-500.25034454,9.992e-05,2]
[348231255,1736406641512,-500.0,9.992e-05,2]
[348231256,1736406641522,-500.0,9.992e-05,2]
[348231257,1736406641531,-500.0,9.992e-05,2]
[348231258,1736406641541,-500.0,9.992e-05,2]
[348231259,1736406641551,-500.0,9.992e-05,2]
[348231260,1736406641560,-500.0,9.992e-05,2]
[348231261,1736406641569,-500.0,9.992e-05,2]
[348231262,1736406641579,-500.0,9.992e-05,2]
[348231263,1736406641592,-500.0,9.992e-05,2]
[348231264,1736406641601,-500.0,9.992e-05,2]
[348231265,1736406641610,-500.0,9.992e-05,2]
[348231266,1736406641620,-500.0,9.992e-05,2]
[348231267,1736406641629,-174.21,9.992e-05,2]
[348231268,1736406641639,-500.0,9.992e-05,2]
[348231269,1736406641648,-500.0,9.992e-05,2]
[348231270,1736406641657,-500.0,9.992e-05,2]
[348231271,1736406641666,-500.96976411,9.992e-05,2]
[348231272,1736406641676,-500.0,9.992e-05,2]
[348231273,1736406641685,-500.0,9.992e-05,2]
[348231274,1736406641695,-511.53,9.992e-05,2]
[348231275,1736406641704,-500.0,9.992e-05,2]
[348231276,1736406641714,-500.0,9.992e-05,2]
[348231277,1736406641724,-500.73195537,9.992e-05,2]
[348231278,1736406641733,-500.0,9.992e-05,2]
[348231279,1736406641743,-500.0,9.992e-05,2]
[348231280,1736406641752,-500.0,9.992e-05,2]
[348231281,1736406641762,-500.0,9.992e-05,2]
[348231282,1736406641772,-500.0,9.992e-05,2]
[348231283,1736406641781,-500.0,9.992e-05,2]
[348231284,1736406641791,-500.0,9.992e-05,2]
[348231285,1736406641800,-171.68262919,9.992e-05,2]
[348231286,1736406642237,-328.31737081,9.992e-05,2]
[348231287,1736406642247,-500.0,9.992e-05,2]
[348231288,1736406642257,-317.79711289,9.992e-05,2]
[348231293,1736406642828,-182.57665735,9.992e-05,2]
[348231294,1736406642840,-500.0,9.992e-05,2]
[348231295,1736406642850,-500.0,9.992e-05,2]
[348231296,1736406642861,-500.0,9.992e-05,2]
[348231297,1736406642871,-500.0,9.992e-05,2]
[348231298,1736406642881,-123.41841469,9.992e-05,2]
[348231302,1736406645763,-926.03589053,9.761e-05,2]
[348231303,1736406645776,-73.96410947,9.761e-05,2]
[348231304,1736406645786,-376.58158531,9.992e-05,2]
[348231305,1736406645795,-500.85628751,9.992e-05,2]
[348231306,1736406645805,-181.81,9.992e-05,2]
[348231307,1736406645814,-500.0,9.992e-05,2]
[348231308,1736406645823,-500.0,9.992e-05,2]
[348231309,1736406645833,-500.79133758,9.992e-05,2]
[348231310,1736406645843,-500.0,9.992e-05,2]
[348231311,1736406645854,-500.0,9.992e-05,2]
[348231312,1736406645866,-500.0,9.992e-05,2]
[348231313,1736406645876,-500.0,9.992e-05,2]
[348231314,1736406645885,-500.0,9.992e-05,2]
[348231315,1736406645895,-500.0,9.992e-05,2]
[348231316,1736406645904,-500.0,9.992e-05,2]
[348231317,1736406645914,-500.0,9.992e-05,2]
[348231318,1736406645923,-500.0,9.992e-05,2]
[348231319,1736406645933,-453.5475002,9.992e-05,2]
[348231320,1736406645943,-500.0,9.992e-05,2]
[348231321,1736406645953,-386.02123096,9.992e-05,2]
[348231322,1736406645966,-113.97876904,9.992e-05,2]
[348231323,1736406645977,-474.96123096,9.992e-05,2]
[348231324,1736406646008,-25.03876904,9.992e-05,2]
[348231325,1736406646019,-500.0,9.992e-05,2]
[348231326,1736406646029,-500.0,9.992e-05,2]
[348231327,1736406646039,-209.31,9.992e-05,2]
[348231328,1736406646049,-500.0,9.992e-05,2]
[348231329,1736406646058,-500.0,9.992e-05,2]
[348231330,1736406646067,-500.0,9.992e-05,2]
[348231331,1736406646076,-500.0,9.992e-05,2]
[348231332,1736406646086,-200.58,9.992e-05,2]
[348231333,1736406646095,-500.0,9.992e-05,2]
[348231334,1736406646104,-500.0,9.992e-05,2]
[348231335,1736406646114,-199.51,9.992e-05,2]
[348231336,1736406646124,-500.0,9.992e-05,2]
[348231337,1736406646135,-500.0,9.992e-05,2]
[348231338,1736406646144,-500.0,9.992e-05,2]
[348231339,1736406646153,-500.0,9.992e-05,2]
[348231340,1736406646162,-500.0,9.992e-05,2]
[348231341,1736406646172,-500.0,9.992e-05,2]
[348231342,1736406646183,-500.0,9.992e-05,2]
[348231343,1736406646193,-500.0,9.992e-05,2]
[348231344,1736406646203,-500.0,9.992e-05,2]
[348231345,1736406646212,-500.63,9.992e-05,2]
[348231346,1736406646223,-542.94140953,9.992e-05,2]
[348231347,1736406646234,-500.0,9.992e-05,2]
[348231348,1736406646244,-171.26,9.992e-05,2]
[348231349,1736406646254,-502.36252508,9.992e-05,2]
[348231350,1736406646264,-500.0,9.992e-05,2]
[348231351,1736406646273,-500.0,9.992e-05,2]
[348231352,1736406646283,-500.0,9.992e-05,2]
[348231353,1736406646292,-640.44,9.992e-05,2]
[348231354,1736406646303,-500.0,9.992e-05,2]
[348231355,1736406646312,-495.9130096,9.992e-05,2]
[348231356,1736406646322,-500.0,9.992e-05,2]
[348231357,1736406646331,-500.0,9.992e-05,2]
[348231358,1736406646342,-500.0,9.992e-05,2]
[348231359,1736406646351,-500.0,9.992e-05,2]
[348231360,1736406646361,-500.0,9.992e-05,2]
[348231361,1736406646370,-343.54,9.992e-05,2]
[348231362,1736406646380,-500.0,9.992e-05,2]
[348231363,1736406646389,-500.0,9.992e-05,2]
[348231364,1736406646399,-185.54,9.992e-05,2]
[348231365,1736406646408,-500.0,9.992e-05,2]
[348231366,1736406646417,-500.0,9.992e-05,2]
[348231367,1736406646427,-504.14191721,9.992e-05,2]
[348231368,1736406646436,-284.44026093,9.992e-05,2]
[348231369,1736406646446,-500.0,9.992e-05,2]
[348231370,1736406646456,-501.02989664,9.992e-05,2]
[348231371,1736406646466,-500.0,9.992e-05,2]
[348231372,1736406646476,-500.0,9.992e-05,2]
[348231373,1736406646485,-500.0,9.992e-05,2]
[348231374,1736406646495,-503.47443321,9.992e-05,2]
[348231375,1736406646505,-256.59777876,9.992e-05,2]
[348231376,1736406646518,-243.40222124,9.992e-05,2]
[348231377,1736406646528,-612.0177811,9.992e-05,2]
[348231378,1736406646537,-500.0,9.992e-05,2]
[348231379,1736406646546,-500.0,9.992e-05,2]
[348231380,1736406646556,-526.08178114,9.992e-05,2]
[348231381,1736406646566,-500.0,9.992e-05,2]
[348231382,1736406646575,-500.0,9.992e-05,2]
[348231383,1736406646585,-622.6,9.992e-05,2]
[348231384,1736406646597,-500.82804996,9.992e-05,2]
[348231385,1736406646606,-500.0,9.992e-05,2]
[348231386,1736406646616,-500.0,9.992e-05,2]
[348231387,1736406646626,-500.0,9.992e-05,2]
[348231388,1736406646635,-500.0,9.992e-05,2]
[348231389,1736406646645,-500.0,9.992e-05,2]
[348231390,1736406646654,-500.0,9.992e-05,2]
[348231391,1736406646664,-500.0,9.992e-05,2]
[348231392,1736406646674,-516.71699819,9.992e-05,2]
[348231393,1736406646683,-500.0,9.992e-05,2]
[348231394,1736406646692,-504.18316484,9.992e-05,2]
[348231395,1736406646702,-274.43719877,9.992e-05,2]
[348231396,1736406646750,-225.56280123,9.992e-05,2]
[348231397,1736406646760,-500.0,9.992e-05,2]
[348231398,1736406646770,-499.1770922,9.992e-05,2]
[348231471,1736406855430,1040.14,8.219e-05,2]
[348231530,1736407832045,-1000.0,9.357e-05,2]
[348231531,1736407832054,-222.11962353,9.363e-05,2]
[348231532,1736407832066,-27.88037647,9.363e-05,2]
[348231533,1736407832076,-274.68,9.409e-05,2]
[348231534,1736407832085,-35.36680353,9.721e-05,2]
[348231535,1736407832184,-72180.81100587,9.721e-05,2]
[348231536,1736407832321,-79275.41253616,9.721e-05,2]
[348231978,1736407837977,-30195.46862244,9.721e-05,2]
[348231979,1736407838026,-8926.61547988,9.721e-05,2]
[348231980,1736407838165,-57730.16404485,9.721e-05,2]
[348231981,1736407838174,-300.0,9.891e-05,2]
[348231982,1736407838183,-150.0,9.891e-05,2]
[348231983,1736407838191,-500.0,9.892e-05,2]
[348231984,1736407838201,-833.1583,9.892e-05,2]
[348231985,1736407838210,-1285.0987,9.892e-05,2]
[348231986,1736407838219,-6563.2761,9.892e-05,2]
[348231987,1736407838228,-37384.5341,9.892e-05,2]
[348231988,1736407838237,-94427.317,9.893e-05,2]
[348231989,1736407838246,-1000.0,9.893e-05,2]
[348231990,1736407838255,-5000.0,9.893e-05,2]
[348231991,1736407838264,-4479.59195187,9.969e-05,2]
[348231992,1736407838273,-200.0,9.974e-05,2]
[348231993,1736407838282,-681.4089312,9.984e-05,2]
[348231994,1736407838291,-681.4089312,9.987e-05,2]
[348231995,1736407838299,-681.4089312,9.992e-05,2]
[348231996,1736407838309,-500.55136311,9.992e-05,2]
[348231997,1736407838319,-501.07896012,9.992e-05,2]
[348231998,1736407838329,-500.0,9.992e-05,2]
[348231999,1736407838338,-500.0,9.992e-05,2]
[348232000,1736407838348,-500.0,9.992e-05,2]
[348232001,1736407838357,-501.93164982,9.992e-05,2]
[348232002,1736407838367,-500.0,9.992e-05,2]
[348232004,1736407838376,-500.0,9.992e-05,2]
[348232006,1736407838386,-2000.0,9.992e-05,2]
[348232008,1736407838395,-200.0,9.992e-05,2]
[348232010,1736407838404,-500.0,9.992e-05,2]
[348232012,1736407838413,-500.0,9.992e-05,2]
[348232014,1736407838422,-500.0,9.992e-05,2]
[348232016,1736407838432,-500.0,9.992e-05,2]
[348232018,1736407838441,-500.0,9.992e-05,2]
[348232020,1736407838450,-500.0,9.992e-05,2]
[348232022,1736407838459,-589.70700499,9.992e-05,2]
[348232024,1736407838468,-500.0,9.992e-05,2]
[348232026,1736407838478,-500.0,9.992e-05,2]
[348232028,1736407838487,-187.37459291,9.992e-05,2]
[348232030,1736407838496,-500.0,9.992e-05,2]
[348232032,1736407838506,-204.76847216,9.992e-05,2]
[348232034,1736407838520,-500.0,9.992e-05,2]
[348232036,1736407838529,-500.0,9.992e-05,2]
[348232038,1736407838538,-500.0,9.992e-05,2]
[348232040,1736407838548,-574.85,9.992e-05,2]
[348232042,1736407838558,-587.0,9.992e-05,2]
[348232044,1736407838568,-500.0,9.992e-05,2]
[348232046,1736407838578,-964.98,9.992e-05,2]
[348232048,1736407838588,-1287.79,9.992e-05,2]
[348232050,1736407838600,-552.47,9.992e-05,2]
[348232052,1736407838609,-520.65,9.992e-05,2]
[348232054,1736407838618,-500.0,9.992e-05,2]
[348232056,1736407838627,-500.0,9.992e-05,2]
[348232058,1736407838639,-662.17,9.992e-05,2]
[348232060,1736407838649,-500.0,9.992e-05,2]
[348232062,1736407838658,-500.0,9.992e-05,2]
[348232064,1736407838668,-500.0,9.992e-05,2]
[348232066,1736407838678,-500.0,9.992e-05,2]
[348232068,1736407838688,-500.0,9.992e-05,2]
[348232070,1736407838698,-1144.51,9.992e-05,2]
[348232072,1736407838708,-888.9,9.992e-05,2]
[348232074,1736407838717,-763.69,9.992e-05,2]
[348232076,1736407838727,-903.3,9.992e-05,2]
[348232078,1736407838738,-903.3,9.992e-05,2]
[348232080,1736407838747,-1172.47,9.992e-05,2]
[348232082,1736407838756,-500.0,9.992e-05,2]
[348232084,1736407838765,-1552.53,9.992e-05,2]
[348232086,1736407838774,-2804.41,9.992e-05,2]
[348232088,1736407838784,-528.62,9.992e-05,2]
[348232090,1736407838793,-531.92,9.992e-05,2]
[348232092,1736407838802,-702.61,9.992e-05,2]
[348232094,1736407838811,-500.0,9.992e-05,2]
[348232096,1736407838820,-500.0,9.992e-05,2]
[348232098,1736407838829,-868.08,9.992e-05,2]
[348232100,1736407838838,-500.0,9.992e-05,2]
[348232102,1736407838847,-500.0,9.992e-05,2]
[348232104,1736407838856,-500.0,9.992e-05,2]
[348232106,1736407838865,-918.23,9.992e-05,2]
[348232108,1736407838874,-500.0,9.992e-05,2]
[348232110,1736407838885,-503.55,9.992e-05,2]
[348232112,1736407838894,-500.0,9.992e-05,2]
[348232114,1736407838903,-500.0,9.992e-05,2]
[348232116,1736407838911,-500.0,9.992e-05,2]
[348232118,1736407838920,-500.0,9.992e-05,2]
[348232120,1736407838929,-500.0,9.992e-05,2]
[348232122,1736407838938,-500.0,9.992e-05,2]
[348232124,1736407838947,-500.0,9.992e-05,2]
[348232126,1736407838955,-861.94,9.992e-05,2]
[348232128,1736407838966,-500.0,9.992e-05,2]
[348232130,1736407838975,-500.0,9.992e-05,2]
[348232132,1736407838984,-500.0,9.992e-05,2]
[348232134,1736407838993,-502.08275398,9.992e-05,2]
[348232136,1736407839001,-500.0,9.992e-05,2]
[348232138,1736407839010,-500.0,9.992e-05,2]
[348232140,1736407839019,-500.0,9.992e-05,2]
[348232141,1736407839028,-500.0,9.992e-05,2]
[348232143,1736407839038,-681.4089312,9.993e-05,2]
[348232144,1736407839046,-681.4089312,9.993e-05,2]
[348232146,1736407839055,-500.0,9.993e-05,2]
[348232148,1736407839064,-500.0,9.993e-05,2]
[348232149,1736407839073,-256.41760065,9.993e-05,2]
[348232151,1736407839081,-523.16,9.993e-05,2]
[348232153,1736407839090,-500.0,9.993e-05,2]
[348232155,1736407839099,-466.4174585,9.993e-05,2]
[348232157,1736407839107,-500.0,9.993e-05,2]
[348232158,1736407839116,-308.79394907,9.993e-05,2]
[348232160,1736407839125,-713.081774,9.993e-05,2]
[348232162,1736407839134,-450.48,9.993e-05,2]
[348232164,1736407839143,-500.0,9.993e-05,2]
[348232165,1736407839151,-414.44969735,9.993e-05,2]
[348232167,1736407839160,-500.0,9.993e-05,2]
[348232169,1736407839169,-500.0,9.993e-05,2]
[348232170,1736407839178,-639.72458466,9.993e-05,2]
[348232172,1736407839187,-503.98197125,9.993e-05,2]
[348232174,1736407839195,-507.87,9.993e-05,2]
[348232176,1736407839204,-500.0,9.993e-05,2]
[348232177,1736407839213,-500.0,9.993e-05,2]
[348232179,1736407839222,-500.0,9.993e-05,2]
[348232181,1736407839231,-605.960626,9.993e-05,2]
[348232183,1736407839241,-192.12347331,9.993e-05,2]
[348232185,1736407839250,-500.0,9.993e-05,2]
[348232186,1736407839259,-501.01800449,9.993e-05,2]
[348232188,1736407839268,-556.66221955,9.993e-05,2]
[348232190,1736407839277,-500.0,9.993e-05,2]
[348232192,1736407839285,-187.367263,9.993e-05,2]
[348232194,1736407839294,-613.27737635,9.993e-05,2]
[348232195,1736407839303,-500.0,9.993e-05,2]
[348232197,1736407839313,-500.0,9.993e-05,2]
[348232199,1736407839323,-500.0,9.993e-05,2]
[348232201,1736407839332,-500.0,9.993e-05,2]
[348232203,1736407839341,-500.0,9.993e-05,2]
[348232205,1736407839350,-500.0,9.993e-05,2]
[348232207,1736407839360,-500.0,9.993e-05,2]